bitfinex/quotes_ETHUSD_20240910
["timestamp","ask_amount","ask_price","bid_price","bid_amount"]
[1725961071345,0.6,2356.2,2355.0,0.75326165]
[1725961071546,3.0,2356.4,2355.1,0.55]
[1725961071763,6.26381198,2356.4,2355.1,0.55]
[1725961071962,0.6263812,2356.3,2355.2,0.32183596]
[1725961072290,3.26381198,2356.2,2355.3,0.63490383]
[1725961072637,0.6263812,2356.3,2355.3,0.63490383]
[1725961072872,6.26381198,2356.4,2355.3,0.55]
[1725961073071,3.0,2356.3,2355.3,0.55]
[1725961074236,3.26381198,2356.2,2355.3,0.55]
[1725961075150,3.0,2356.3,2355.3,0.55]
[1725961075382,3.26381198,2356.2,2355.3,0.55]
[1725961078289,3.26381198,2356.0,2355.3,0.55]
[1725961079450,3.26381198,2356.2,2355.3,0.55]
[1725961079648,3.0,2356.1,2355.3,0.55]
[1725961079851,3.26381198,2356.0,2355.3,0.55]
[1725961080095,3.26381198,2356.0,2355.3,1.3851836]
[1725961080973,3.26381198,2355.7,2355.2,0.32183596]
[1725961081177,3.0,2355.9,2355.1,7.48]
[1725961081178,3.26381198,2355.9,2355.1,0.08491243]
[1725961081393,3.26381198,2355.9,2355.1,2.04640367]
[1725961081547,3.0,2356.0,2355.1,2.04640367]
[1725961081855,3.0,2356.2,2355.1,2.04640367]
[1725961082058,3.0,2356.2,2355.2,22.79381198]
[1725961082266,3.0,2356.3,2355.3,3.11891306]
[1725961082559,6.26381198,2356.3,2355.3,3.11891306]
[1725961082756,3.26381198,2356.3,2355.3,3.11891306]
[1725961083091,3.26381198,2356.3,2355.4,0.95566281]
[1725961083344,3.26381198,2356.3,2355.5,0.55]
[1725961083551,3.26381198,2355.7,2354.4,2.0]
[1725961083854,3.26381198,2355.7,2354.9,0.748]
[1725961084000,3.26381198,2355.9,2354.9,0.08491532]
[1725961084342,3.26381198,2355.9,2354.5,0.08491531]
[1725961084548,3.26381198,2355.9,2354.5,2.61548319]
[1725961084701,3.26381198,2355.9,2354.6,3.26381198]
[1725961084901,3.26381198,2355.9,2354.7,0.08491523]
[1725961086142,3.26381198,2355.9,2354.8,0.55]
[1725961086300,3.26381198,2355.9,2354.9,0.08491529]
[1725961086503,3.26381198,2355.7,2355.0,0.55]
[1725961086701,3.26381198,2355.5,2355.0,0.55]
[1725961087926,3.26381198,2355.7,2355.0,0.55]
[1725961088251,3.0,2355.6,2355.1,0.08491687]
[1725961088420,3.0,2355.8,2355.2,0.55]
[1725961088624,3.0,2356.0,2355.2,0.55]
[1725961089043,3.0,2356.0,2355.3,0.08490547]
[1725961089306,3.0,2356.0,2355.4,0.55]
[1725961090692,3.56381198,2356.3,2355.4,0.55]
[1725961090806,3.26381198,2356.3,2355.5,0.08489361]
[1725961091010,3.26381198,2356.3,2355.6,0.55]
[1725961091247,3.0,2356.4,2355.7,0.08489145]
[1725961091411,3.0,2356.4,2355.8,0.55]
[1725961091746,3.6263812,2356.4,2355.8,0.55]
[1725961091956,3.0,2356.4,2355.9,0.08489145]
[1725961092139,3.0,2356.4,2356.0,0.55]
[1725961093073,0.1177243,2356.8,2355.8,0.55]
[1725961093221,0.1177243,2356.8,2355.9,0.08488222]
[1725961093412,0.1177243,2356.8,2356.0,0.55]
[1725961093710,0.1177243,2356.8,2356.1,0.08487625]
[1725961093932,0.1177243,2356.8,2356.2,0.55]
[1725961094659,3.38153628,2356.8,2356.2,0.55]
[1725961094952,3.63815363,2356.7,2356.2,0.55]
[1725961095158,3.0,2356.7,2356.2,0.55]
[1725961095771,0.1177243,2356.8,2356.2,0.55]
[1725961095913,0.1177243,2356.8,2356.3,0.08487006]
[1725961096261,0.1177243,2356.8,2356.4,0.55]
[1725961096562,0.1177243,2356.8,2356.5,0.08486393]
[1725961096856,0.1177243,2356.8,2356.6,0.55]
[1725961117371,0.1177243,2356.8,2356.1,7.48]
[1725961117372,0.45587793,2356.8,2356.1,7.48]
[1725961117709,0.1177243,2356.8,2356.1,7.48]
[1725961118907,0.1177243,2356.8,2356.2,0.08487064]
[1725961119112,0.1177243,2356.8,2356.3,0.55]
[1725961119474,0.1177243,2356.8,2356.2,0.55]
[1725961119672,0.1177243,2356.8,2356.2,1.298]
[1725961120267,0.1177243,2356.8,2356.2,0.55]
[1725961120913,0.1177243,2356.8,2356.0,0.55]
[1725961121973,3.26381198,2356.7,2356.0,0.55]
[1725961122405,3.26381198,2356.3,2355.9,7.48]
[1725961122572,3.26381198,2356.1,2355.5,7.48]
[1725961122916,3.26381198,2355.9,2355.5,9.459]
[1725961123082,3.26381198,2355.9,2355.5,7.48]
[1725961123417,3.26381198,2355.9,2355.1,27.01]
[1725961123570,3.26381198,2355.9,2355.2,2.701]
[1725961123777,3.26381198,2355.9,2354.9,7.48]
[1725961124723,3.26381198,2355.5,2354.9,7.48]
[1725961126177,3.26381198,2355.5,2355.0,0.08492083]
[1725961126401,3.26381198,2355.5,2355.0,2.79441291]
[1725961126566,3.26381198,2355.5,2355.0,2.70949208]
[1725961127175,3.26381198,2355.5,2355.1,0.55]
[1725961129725,3.26381198,2355.7,2355.1,0.55]
[1725961129883,3.0,2355.6,2355.1,0.55]
[1725961130729,3.26381198,2355.5,2355.1,0.55]
[1725961131025,3.0,2355.6,2355.1,0.87594921]
[1725961131328,3.0,2355.6,2355.1,0.9608634]
[1725961131492,3.26381198,2355.9,2355.1,0.9608634]
[1725961131493,3.0,2355.8,2355.1,0.9608634]
[1725961131702,3.0,2355.8,2355.2,0.36703555]
[1725961132032,3.0,2355.8,2355.3,0.55]
[1725961132343,3.0,2355.8,2355.3,0.634906]
[1725961132823,3.0,2355.8,2355.3,0.55]
[1725961134113,3.26381198,2355.7,2355.3,0.55]
[1725961134317,3.0,2355.6,2354.8,19.53]
[1725961134709,3.0,2355.6,2354.9,0.0849161]
[1725961135628,3.26381198,2355.7,2354.9,19.6149161]
[1725961135825,3.0,2355.6,2355.0,1.96149161]
[1725961136022,3.0,2355.6,2355.1,0.55]
[1725961138174,3.0,2355.8,2355.1,0.55]
[1725961138485,3.0,2355.8,2355.2,0.0849095]
[1725961138692,3.0,2355.8,2355.3,0.55]
[1725961141077,3.26381198,2355.7,2355.3,0.55]
[1725961141597,3.26381198,2356.1,2355.4,0.08491002]
[1725961141744,3.0,2356.0,2355.4,0.08491002]
[1725961141949,3.0,2356.0,2355.5,0.55]
[1725961142281,3.0,2356.2,2355.6,0.08489919]
[1725961142588,3.26381198,2356.5,2355.7,0.55]
[1725961142902,3.26381198,2356.5,2355.8,0.08488296]
[1725961143050,3.26381198,2356.5,2355.9,0.55]
[1725961143483,3.57558441,2356.7,2355.9,0.55]
[1725961143694,3.26381198,2356.7,2355.9,0.55]
[1725961143997,3.26381198,2356.7,2356.0,0.08488197]
[1725961144158,3.0,2356.6,2356.1,0.55]
[1725961145357,0.1177243,2356.8,2356.2,0.08487705]
[1725961145593,0.1177243,2356.8,2356.3,0.55]
[1725961150888,3.26381198,2356.7,2356.3,0.55]
[1725961151485,0.1177243,2356.8,2356.3,0.55]
[1725961155746,0.75587793,2356.8,2356.3,0.55]
[1725961155889,3.26381198,2356.7,2356.3,0.55]
[1725961158852,3.0,2356.6,2356.3,0.55]
[1725961159221,3.0,2356.6,2355.8,0.08487803]
[1725961159424,3.0,2356.6,2355.8,2.04636583]
[1725961159872,3.0,2356.6,2355.8,0.08487803]
[1725961160967,3.0,2356.6,2355.9,0.55]
[1725961161961,3.0,2356.6,2356.0,0.08488359]
[1725961162125,0.1177243,2356.8,2356.1,0.55]
[1725961162331,0.1177243,2356.8,2356.2,0.0848737]
[1725961162568,0.1177243,2356.8,2356.3,0.55]
[1725961162737,0.1177243,2356.8,2356.4,0.08486635]
[1725961163078,0.1177243,2356.8,2356.5,0.55]
[1725961166134,3.26381198,2356.7,2356.5,0.55]
[1725961167033,0.1177243,2356.8,2356.5,0.55]
[1725961175239,3.26381198,2356.7,2356.5,0.55]
[1725961175440,0.1177243,2356.8,2356.5,0.55]
[1725961182132,1.61397673,2356.8,2356.5,0.55]
[1725961183024,1.49625243,2356.6,2356.5,0.55]
[1725961188104,3.25277756,2356.6,2356.5,0.55]
[1725961189477,1.49625243,2356.6,2356.5,0.55]
[1725961189884,3.25277756,2356.6,2356.5,0.55]
[1725961191169,1.75652513,2356.6,2356.5,0.55]
[1725961192274,2.22236102,2356.7,2356.5,0.55]
[1725961192275,1.75652513,2356.7,2356.5,0.55]
[1725961192466,1.75652513,2356.7,2356.6,0.55]
[1725961192897,2.22236102,2356.7,2356.6,0.55]
[1725961193201,1.78172601,2356.7,2356.6,0.55]
[1725961193698,1.78172601,2356.7,2356.4,0.55]
[1725961193899,1.78172601,2356.7,2356.2,2.07141564]
[1725961194102,1.78172601,2356.7,2356.3,0.08486621]
[1725961194309,1.78172601,2356.7,2356.4,0.55]
[1725961194465,1.33600221,2356.6,2356.4,0.55]
[1725961194894,1.33600221,2356.5,2356.4,0.55]
[1725961195094,1.33600221,2356.5,2356.3,0.55]
[1725961196663,1.33600221,2356.4,2356.3,0.55]
[1725961199106,2.83225464,2356.4,2355.8,0.88719285]
[1725961199296,1.49625243,2356.1,2355.6,0.88719285]
[1725961199493,1.33562104,2356.0,2355.6,1.43298818]
[1725961199692,2.83187347,2355.9,2355.5,1.43307964]
[1725961199877,2.83187347,2355.9,2355.3,0.88719285]
[1725961200088,2.83187347,2355.9,2355.2,28.60042938]
[1725961200089,1.33562104,2355.8,2355.4,1.81810243]
[1725961200297,1.33562104,2355.8,2355.4,0.8626833]
[1725961200504,1.33562104,2355.8,2355.4,2.38069603]
[1725961200713,1.33562104,2355.9,2355.5,1.28215564]
[1725961201016,1.33562104,2355.9,2355.5,0.32678889]
[1725961201391,1.49625243,2355.9,2355.5,0.32678889]
[1725961201596,1.49625243,2355.9,2355.6,0.55]
[1725961201779,2.83187347,2355.9,2355.6,0.8671977]
[1725961202505,1.49625243,2355.9,2355.6,0.55]
[1725961202814,2.83187347,2355.9,2355.5,0.55]
[1725961203016,1.33562104,2355.9,2355.5,0.55]
[1725961203199,1.33562104,2356.0,2355.5,0.55]
[1725961203794,1.49625243,2355.9,2355.5,0.55]
[1725961204129,2.83187347,2355.9,2355.5,0.83447227]
[1725961204282,2.83187347,2355.9,2355.5,0.55]
[1725961204478,1.49625243,2355.9,2355.5,0.55]
[1725961204981,1.49625243,2355.7,2355.5,0.55]
[1725961205181,1.49625243,2355.7,2355.4,0.55]
[1725961205421,2.83187347,2355.7,2355.4,0.55]
[1725961205717,1.49625243,2355.7,2355.3,22.231]
[1725961205918,1.49625243,2355.5,2355.3,22.231]
[1725961206592,1.49625243,2355.7,2355.3,22.231]
[1725961207037,1.33562104,2355.8,2355.4,2.78508517]
[1725961207190,2.83187347,2356.0,2355.5,0.55]
[1725961207391,1.33562104,2356.0,2355.6,0.32501756]
[1725961207723,1.33562104,2356.0,2355.7,0.55]
[1725961208224,5.83187347,2356.1,2355.7,0.55]
[1725961209580,1.49625243,2355.9,2355.7,0.55]
[1725961210219,4.33562104,2356.1,2355.5,0.55]
[1725961210220,3.24419262,2356.0,2355.5,0.55]
[1725961210423,3.24419262,2356.0,2355.5,2.77301756]
[1725961211836,4.57981366,2356.2,2355.5,2.77301756]
[1725961211982,4.57981366,2356.2,2355.6,0.47798244]
[1725961212186,3.24419262,2356.0,2355.7,0.55]
[1725961212433,4.57981366,2356.0,2355.3,19.53]
[1725961212583,3.24419262,2355.8,2355.3,19.53]
[1725961212787,4.57981366,2356.0,2355.3,19.53]
[1725961213588,3.24419262,2356.0,2355.3,19.53]
[1725961213789,1.33562104,2356.1,2355.4,2.78590057]
[1725961214042,1.33562104,2356.2,2355.5,0.08489659]
[1725961214337,1.33562104,2356.3,2355.6,0.55]
[1725961214524,1.33562104,2356.3,2355.7,0.08488261]
[1725961214720,1.33562104,2356.4,2355.8,0.55]
[1725961215019,1.33562104,2356.4,2355.9,0.0848826]
[1725961215216,1.33562104,2356.4,2356.0,0.55]
[1725961215418,4.57981366,2356.4,2356.0,0.55]
[1725961215924,3.24419262,2356.4,2356.0,0.55]
[1725961216441,1.33562104,2356.5,2356.0,0.55]
[1725961217012,1.33562104,2356.5,2355.8,0.55]
[1725961217308,1.33562104,2356.5,2355.9,0.08488262]
[1725961217621,1.33562104,2356.4,2356.0,0.55]
[1725961218311,1.33562104,2356.4,2355.8,0.55]
[1725961218508,1.33562104,2356.4,2355.9,0.08488273]
[1725961218714,1.33562104,2356.4,2356.0,0.55]
[1725961219311,4.57981366,2356.4,2356.0,0.55]
[1725961219838,3.24419262,2356.4,2355.8,0.55]
[1725961220036,3.24419262,2356.4,2355.8,2.79826472]
[1725961220440,1.33562104,2356.5,2355.8,2.79826472]
[1725961220641,7.57981366,2356.6,2355.8,0.55]
[1725961220811,7.57981366,2356.6,2355.7,0.55]
[1725961220812,6.24419262,2356.6,2355.7,0.55]
[1725961221013,7.57981366,2356.6,2355.8,2.208]
[1725961221350,7.57981366,2356.6,2355.9,0.55]
[1725961221351,3.0,2356.6,2355.9,0.55]
[1725961221510,3.0,2356.6,2356.0,2.322155]
[1725961221710,3.0,2356.6,2356.1,0.55]
[1725961222041,3.0,2356.6,2356.2,0.08486756]
[1725961222342,3.0,2356.6,2356.3,0.55]
[1725961225257,3.0,2356.6,2356.2,0.63486763]
[1725961225457,3.0,2356.6,2356.3,0.08486764]
[1725961225658,3.0,2356.6,2356.4,0.55]
[1725961226470,1.45334534,2356.8,2356.4,0.55]
[1725961226636,4.45334534,2356.8,2356.4,0.55]
[1725961227166,6.36191692,2356.8,2356.4,0.55]
[1725961227322,7.69753796,2356.8,2356.4,0.55]
[1725961227664,3.24419262,2356.6,2356.3,0.55]
[1725961227837,3.24419262,2356.6,2356.2,0.55]
[1725961228038,1.33562104,2356.7,2356.2,0.55]
[1725961228267,7.69753796,2356.8,2356.2,2.78172875]
[1725961228476,1.33562104,2356.7,2356.2,2.78172875]
[1725961228671,1.33562104,2356.7,2356.2,0.55]
[1725961228965,4.57981366,2356.6,2356.2,0.55]
[1725961229168,4.57981366,2356.6,2356.0,0.55]
[1725961229469,1.33562104,2356.5,2356.0,0.55]
[1725961229628,1.33562104,2356.5,2356.0,3.306]
[1725961229829,4.57981366,2356.6,2356.0,3.306]
[1725961231369,4.57981366,2356.6,2356.1,0.08488199]
[1725961231537,1.33562104,2356.7,2356.2,0.55]
[1725961231741,3.0,2356.7,2356.2,0.55]
[1725961232839,4.33562104,2356.7,2356.2,0.55]
[1725961233491,3.24419262,2356.6,2356.2,0.55]
[1725961233632,5.52774006,2356.6,2356.2,0.55]
[1725961233837,5.52774006,2356.6,2356.0,0.55]
[1725961233838,4.57981366,2356.6,2356.0,0.55]
[1725961234038,1.33562104,2356.6,2356.0,0.63487952]
[1725961234298,4.33562104,2356.7,2356.1,2.01648795]
[1725961234576,5.14364293,2356.8,2356.2,0.63487196]
[1725961234577,4.69753796,2356.8,2356.2,0.63487196]
[1725961234786,0.1177243,2356.8,2356.3,0.08486723]
[1725961234933,0.1177243,2356.8,2356.4,0.55]
[1725961236583,3.36191692,2356.8,2356.4,0.55]
[1725961236732,4.69753796,2356.8,2356.4,0.55]
[1725961237060,4.69753796,2356.8,2356.1,0.08486721]
[1725961237061,0.1177243,2356.8,2356.2,0.55]
[1725961237263,0.1177243,2356.8,2356.3,0.08486693]
[1725961237448,0.1177243,2356.8,2356.4,0.55]
[1725961238291,0.1177243,2356.8,2356.4,0.63486685]
[1725961238596,0.1177243,2356.8,2356.7,2.0]
[1725961238908,0.1177243,2356.8,2356.7,0.55]
[1725961239250,0.1177243,2356.8,2356.6,0.55]
[1725961239482,0.1177243,2356.8,2356.4,0.55]
[1725961239693,0.1177243,2356.8,2356.4,2.84566409]
[1725961239904,0.1177243,2356.8,2356.5,3.0]
[1725961240067,0.1177243,2356.8,2356.6,0.55]
[1725961240285,0.1177243,2356.8,2356.4,0.55]
[1725961240679,0.1177243,2356.8,2356.0,3.0]
[1725961240680,0.1177243,2356.8,2356.2,0.97669624]
[1725961241014,0.1177243,2356.8,2356.2,0.55]
[1725961242211,0.1177243,2356.8,2356.1,0.55]
[1725961242372,0.1177243,2356.8,2356.1,1.09266962]
[1725961243219,0.1177243,2356.8,2356.1,1.51936586]
[1725961243386,0.1177243,2356.8,2356.2,0.42669624]
[1725961243573,0.1177243,2356.8,2356.3,0.55]
[1725961243774,0.1177243,2356.8,2356.2,0.83599193]
[1725961243973,0.1177243,2356.8,2356.3,0.55]
[1725961244481,3.36191692,2356.8,2356.3,0.55]
[1725961244695,3.36191692,2356.8,2356.1,0.97673479]
[1725961244696,4.13167072,2356.8,2356.1,0.97673479]
[1725961244869,4.13167072,2356.8,2356.1,0.55]
[1725961245068,4.13167072,2356.8,2355.9,0.97674149]
[1725961245278,3.36191692,2356.8,2356.0,0.42674149]
[1725961245521,3.36191692,2356.8,2355.9,0.55]
[1725961245522,3.36191692,2356.8,2356.1,0.55]
[1725961245693,3.36191692,2356.8,2356.0,0.42674375]
[1725961245896,3.36191692,2356.8,2356.1,0.55]
[1725961246716,3.24419262,2356.6,2356.1,0.55]
[1725961247051,3.24419262,2356.4,2355.9,0.55]
[1725961247187,3.24419262,2356.2,2355.7,0.42676924]
[1725961247525,1.33562104,2356.5,2355.5,0.4268393]
[1725961247526,3.24419262,2356.0,2355.5,0.4268393]
[1725961247733,3.24419262,2356.0,2355.3,0.4268393]
[1725961248029,3.24419262,2355.6,2354.8,0.88719285]
[1725961248239,3.24419262,2355.6,2354.9,0.4269062]
[1725961248535,3.24419262,2355.6,2355.0,0.4269062]
[1725961248701,3.24419262,2355.6,2355.1,0.4269062]
[1725961248902,3.24419262,2355.6,2354.7,1.41768164]
[1725961249098,3.24419262,2355.8,2354.7,2.36271768]
[1725961249298,3.24419262,2355.8,2354.8,2.28979753]
[1725961249499,3.24419262,2355.8,2354.8,5.28979753]
[1725961250218,3.24419262,2355.8,2354.8,2.28979753]
[1725961250419,3.24419262,2355.8,2354.9,0.63528918]
[1725961250603,3.24419262,2355.8,2355.0,0.55]
[1725961252406,3.24419262,2355.8,2355.0,20.08]
[1725961260274,3.24419262,2355.6,2355.0,20.08]
[1725961260444,3.56861188,2355.6,2355.0,20.08]
[1725961260644,3.24419262,2355.6,2355.0,20.08]
[1725961262430,3.24419262,2355.4,2355.0,20.08]
[1725961262630,1.33562104,2355.8,2354.6,7.48]
[1725961262631,3.24419262,2355.2,2354.6,7.48]
[1725961262870,4.33562104,2355.8,2354.5,1.531]
[1725961262871,3.24419262,2355.0,2354.5,1.531]
[1725961263184,1.33562104,2355.5,2354.6,0.08493276]
[1725961263474,4.78172601,2355.6,2354.7,19.53]
[1725961263475,6.24419262,2355.6,2354.7,19.53]
[1725961263634,3.0,2355.5,2354.7,19.53]
[1725961264025,3.0,2355.5,2354.8,0.08491868]
[1725961264274,3.0,2355.5,2354.9,0.55]
[1725961265176,6.24419262,2355.6,2354.9,0.55]
[1725961269461,3.24419262,2355.4,2354.9,0.55]
[1725961270248,3.24419262,2355.2,2354.9,0.55]
[1725961270498,0.32441926,2355.1,2354.8,0.55]
[1725961270662,3.24419262,2355.2,2354.8,0.55]
[1725961271010,3.24419262,2355.2,2354.7,19.53]
[1725961271011,3.24419262,2355.4,2354.7,19.53]
[1725961271161,3.24419262,2355.4,2354.8,2.701]
[1725961272199,3.24419262,2355.4,2354.9,0.55]
[1725961273502,3.24419262,2355.4,2354.8,0.55]
[1725961273710,3.24419262,2355.2,2354.7,0.55]
[1725961277358,3.24419262,2355.0,2354.7,0.55]
[1725961277559,3.24419262,2354.8,2354.2,7.48]
[1725961277759,3.24419262,2354.8,2354.0,19.53]
[1725961278199,3.24419262,2355.0,2354.0,19.53]
[1725961278500,3.0,2354.9,2354.0,19.53]
[1725961278657,3.0,2354.9,2354.1,2.701]
[1725961279276,3.0,2354.9,2354.2,0.55]
[1725961280480,3.24419262,2354.8,2354.2,0.55]
[1725961280877,3.24419262,2354.6,2354.0,19.53]
[1725961281088,3.0,2354.9,2353.6,19.53]
[1725961281089,3.24419262,2354.4,2353.6,19.53]
[1725961281316,3.24419262,2354.2,2353.6,3.184]
[1725961281618,3.24419262,2354.2,2353.1,5.9090225]
[1725961281918,3.0,2354.3,2353.1,24.77419262]
[1725961282129,3.0,2354.3,2353.2,3.17558161]
[1725961282275,3.0,2354.3,2353.3,3.32914969]
[1725961282482,3.0,2354.3,2353.4,0.61319625]
[1725961283094,3.0,2354.5,2353.5,0.55]
[1725961283723,3.0,2354.5,2353.6,0.08495709]
[1725961283893,3.0,2354.5,2353.7,0.55]
[1725961284091,6.24419262,2354.8,2353.8,0.08495711]
[1725961284290,6.24419262,2354.8,2353.9,0.55]
[1725961284528,6.24419262,2354.8,2354.0,0.08494768]
[1725961284733,3.0,2354.8,2354.1,0.55]
[1725961284899,3.0,2354.8,2354.2,0.08494157]
[1725961285105,3.0,2354.8,2354.3,0.55]
[1725961285320,3.0,2354.8,2354.4,0.08493606]
[1725961285499,3.24419262,2355.0,2354.5,0.55]
[1725961285700,3.24419262,2355.0,2354.3,0.55]
[1725961285940,3.24419262,2355.0,2354.1,0.63494194]
[1725961287242,3.24419262,2355.0,2354.1,0.55]
[1725961287534,3.24419262,2355.0,2354.2,0.355]
[1725961287735,3.24419262,2355.0,2354.3,0.55]
[1725961288209,3.24419262,2355.2,2354.4,0.0849363]
[1725961288539,3.0,2355.3,2354.4,0.0849363]
[1725961288540,3.0,2355.3,2354.5,0.55]
[1725961288702,3.0,2355.3,2354.6,0.08493147]
[1725961289053,3.0,2355.3,2354.7,0.55]
[1725961290732,3.24419262,2355.2,2354.7,0.55]
[1725961290966,3.24419262,2355.2,2354.5,0.55]
[1725961292535,3.24419262,2355.0,2354.5,0.55]
[1725961293460,3.24419262,2355.0,2354.4,19.53]
[1725961294382,3.24419262,2355.0,2354.1,7.48]
[1725961294893,3.24419262,2355.0,2354.1,8.14464977]
[1725961295192,3.7755302,2355.0,2354.2,1.53727392]
[1725961296783,3.0,2354.9,2354.2,1.53727392]
[1725961300377,3.0,2355.0,2354.2,1.53727392]
[1725961300576,3.24419262,2354.9,2354.2,1.53727392]
[1725961300757,3.0,2355.0,2354.3,0.96819905]
[1725961300967,3.0,2355.0,2354.4,0.55]
[1725961303653,4.33562104,2355.0,2354.4,0.55]
[1725961304097,3.0,2355.0,2354.4,0.77678116]
[1725961304391,4.33562104,2355.0,2354.4,0.77678116]
[1725961304760,3.0,2355.0,2354.4,0.77678116]
[1725961305252,4.33562104,2355.0,2354.4,0.77678116]
[1725961306191,3.24419262,2354.9,2354.4,0.77678116]
[1725961306504,3.24419262,2354.9,2354.4,0.55]
[1725961306700,3.24419262,2354.9,2354.1,7.48]
[1725961306701,3.24419262,2354.9,2354.2,1.21467629]
[1725961306901,3.24419262,2354.9,2354.2,0.55]
[1725961307076,4.29612139,2354.9,2354.3,0.66467935]
[1725961307281,4.29612139,2354.9,2354.4,0.55]
[1725961307596,3.24419262,2354.9,2354.4,0.55]
[1725961307911,3.24419262,2354.9,2354.3,0.66466601]
[1725961308204,3.24419262,2354.9,2354.4,0.55]
[1725961308407,4.57981366,2354.9,2354.4,0.55]
[1725961308609,4.57981366,2354.9,2354.3,1.21467784]
[1725961308810,4.57981366,2354.9,2354.3,0.55]
[1725961309152,5.73782112,2354.9,2354.3,0.55]
[1725961313375,1.33562104,2354.9,2354.3,0.55]
[1725961313578,4.33562104,2354.9,2354.3,0.55]
[1725961314774,1.33562104,2355.0,2354.3,0.55]
[1725961314985,4.33562104,2355.0,2354.3,1.23325877]
[1725961315296,4.33562104,2355.0,2354.4,0.21559373]
[1725961315491,4.33562104,2355.0,2354.5,0.55]
[1725961315698,1.33562104,2354.9,2354.5,0.55]
[1725961317627,4.57981366,2354.9,2354.3,0.55]
[1725961317824,4.57981366,2354.9,2354.3,1.44526785]
[1725961318119,4.57981366,2354.9,2354.3,0.55]
[1725961318429,4.57981366,2354.9,2354.2,0.55]
[1725961318987,1.33562104,2354.9,2354.2,0.55]
[1725961321423,3.0,2355.0,2354.2,0.55]
[1725961321627,3.0,2355.0,2354.3,0.803]
[1725961321836,3.0,2355.0,2354.4,0.55]
[1725961322328,2.66488513,2355.3,2354.5,0.08494055]
[1725961322534,3.0,2355.2,2354.6,0.55]
[1725961322731,6.24419262,2355.2,2354.6,0.55]
[1725961323027,6.24419262,2355.2,2354.4,0.55]
[1725961324355,6.24419262,2355.2,2354.4,0.63493551]
[1725961324930,6.24419262,2355.2,2354.4,0.55]
[1725961325253,3.24419262,2355.0,2354.4,0.55]
[1725961325759,3.92441926,2355.2,2354.4,0.55]
[1725961325960,3.0,2355.3,2354.4,0.63493631]
[1725961326615,3.0,2355.4,2354.4,0.63493631]
[1725961326811,3.0,2355.4,2354.4,3.63493631]
[1725961327016,3.0,2355.4,2354.5,0.76821289]
[1725961327259,3.24419262,2355.8,2354.6,0.63491689]
[1725961327458,3.24419262,2355.8,2354.6,3.63491689]
[1725961327658,3.0,2356.2,2354.7,4.00892486]
[1725961327816,7.61674663,2356.0,2354.8,0.63491015]
[1725961328562,3.0,2355.9,2354.8,0.63491015]
[1725961328759,3.24419262,2355.8,2354.9,0.4643835]
[1725961328971,3.24419262,2355.8,2355.0,0.55]
[1725961329465,3.24419262,2355.8,2354.8,0.55]
[1725961329873,3.24419262,2355.6,2354.8,0.55]
[1725961330226,1.33263031,2355.5,2354.6,1.44065991]
[1725961330459,1.33263031,2355.5,2354.7,0.94902921]
[1725961330662,1.33263031,2355.5,2354.8,0.55]
[1725961332857,4.57682293,2355.6,2354.8,0.55]
[1725961333399,1.33263031,2355.6,2354.9,0.08491233]
[1725961333579,1.33263031,2355.6,2355.0,0.55]
[1725961333899,1.33263031,2355.6,2354.8,0.55]
[1725961335601,1.33263031,2355.7,2354.9,0.08491244]
[1725961335772,1.33263031,2355.8,2355.0,0.55]
[1725961335983,4.33263031,2355.9,2355.1,0.08490454]
[1725961336297,1.33263031,2356.0,2355.2,0.55]
[1725961336513,1.33263031,2356.1,2355.3,0.52219672]
[1725961336707,1.33263031,2356.1,2355.4,0.55]
[1725961336873,1.33263031,2356.1,2355.5,0.08489795]
[1725961337070,1.33263031,2356.1,2355.6,0.55]
[1725961337481,4.33263031,2356.2,2355.6,0.55]
[1725961337818,2.0324194,2356.1,2355.6,0.55]
[1725961338378,0.69978909,2356.1,2355.6,0.55]
[1725961340320,3.0,2356.2,2355.6,0.55]
[1725961342405,3.0,2356.2,2355.7,0.08489816]
[1725961342607,1.33263031,2356.5,2355.8,0.55]
[1725961342808,1.77684042,2356.6,2355.8,2.62148982]
[1725961342809,1.33263031,2356.6,2355.8,2.62148982]
[1725961343011,4.57682293,2356.7,2355.8,2.62148982]
[1725961343186,0.69134457,2356.6,2355.8,2.70637576]
[1725961344126,3.69134457,2356.6,2355.8,2.70637576]
[1725961344344,3.0,2356.6,2355.8,2.70637576]
[1725961344820,0.1177243,2356.8,2355.8,2.70637576]
[1725961344821,3.1177243,2356.8,2355.8,2.70637576]
[1725961345031,3.24419262,2356.7,2355.8,2.70637576]
[1725961345326,3.24419262,2356.7,2355.9,2.22363758]
[1725961345520,3.24419262,2356.7,2356.0,0.6348773]
[1725961346338,3.1177243,2356.8,2356.0,0.6348773]
[1725961346339,3.24419262,2356.5,2356.0,0.55]
[1725961346484,0.32441926,2356.4,2356.0,0.55]
[1725961346682,3.24419262,2356.5,2355.8,0.55]
[1725961347384,3.24419262,2356.7,2355.8,0.55]
[1725961347583,3.24419262,2356.7,2355.9,2.008]
[1725961347811,3.24419262,2356.7,2356.0,0.55]
[1725961349892,0.1177243,2356.8,2356.0,20.16487802]
[1725961350199,0.1177243,2356.8,2356.1,2.0164878]
[1725961350420,0.1177243,2356.8,2356.2,0.55]
[1725961351189,3.24419262,2356.7,2356.2,0.55]
[1725961351619,0.1177243,2356.8,2356.2,0.55]
[1725961351804,3.36191692,2356.8,2356.2,0.55]
[1725961352009,3.69810861,2356.8,2356.2,0.55]
[1725961352532,3.24419262,2356.6,2356.2,0.55]
[1725961352708,3.24419262,2356.6,2356.1,0.55]
[1725961354627,3.24419262,2356.6,2355.9,0.55]
[1725961354829,3.24419262,2356.6,2356.0,0.08487852]
[1725961355052,3.24419262,2356.6,2356.1,0.55]